Cogmind - Beta 10.2 *** ADVENTURER MODE // 2022.02.14 @ 15:27:20 Player: Kaz Result: Destroyed by D-53 Grenadier with Mini Grenade Launcher Performance ------------- Evolutions (0) 0 Regions Visited (2) 400 Robots Destroyed (30) 150 Value Destroyed (534) 534 Prototype IDs (0) 0 Alien Tech Used (0) 0 Bonus (0) 0 TOTAL SCORE: 1084 Bonus ------- None Cogmind --------- Core Integrity 0/250 Matter 162/300 Energy 71/100 System Corruption 0% Temperature Cool (6) Movement Core (650) Ox12 Location -10/Mines Parts ------- > --- POWER (1) -------- (None) > --- PROPULSION (2) --- (None) > --- UTILITY (2) ------ Large Storage Unit Large Storage Unit > --- WEAPON (2) ------- Light Cannon Light Cannon > --- INVENTORY (16) --- Ion Engine Wheel Wheel Wheel Wheel High-capacity Battery (400) Medium Matter Pod (100) High-capacity Matter Pod (0) Light Armor Plating Light Armor Plating Assault Rifle Light Assault Rifle Light Cannon Peak State ------------ > --- POWER ------------ Ion Engine > --- PROPULSION ------- Wheel Wheel > --- UTILITY ---------- Medium Storage Unit Medium Storage Unit > --- WEAPON ----------- Light Cannon Light Cannon > --- INVENTORY -------- Wheel Wheel Wheel Medium Matter Pod Light Armor Plating Assault Rifle Assault Rifle Light Assault Rifle Light Cannon Light Cannon [Rating: 8] Favorites ----------- Power Ion Engine Engine Ion Engine Propulsion Wheel Wheel Wheel Utility Medium Storage Unit Device Sensor Array Storage Medium Storage Unit Weapon Light Cannon Ballistic Gun Assault Rifle Ballistic Cannon Light Cannon Build | -11 -10 -10 ------- Run | Scr Mat Min Slots Evolved . | . . . Power . | . . . Propulsion . | . . . Utility . | . . . Weapon . | . . . Parts Attached 24 | 6 16 2 Power 4 | 1 3 . Engine 4 | 1 3 . Core . | . . . Reactor . | . . . Propulsion 6 | 2 4 . Treads . | . . . Leg . | . . . Wheel 6 | 2 4 . Hover . | . . . Flight . | . . . Utility 7 | 1 6 . Device 1 | . 1 . Storage 6 | 1 5 . Processor . | . . . Hackware . | . . . Protection . | . . . Artifact . | . . . Weapon 7 | 2 3 2 Energy Gun . | . . . Energy Cannon . | . . . Ballistic Gun 3 | 2 1 . Ballistic Cannon 4 | . 2 2 Launcher . | . . . Special Weapon . | . . . Impact Weapon . | . . . Slashing Weapon . | . . . Piercing Weapon . | . . . Special Melee Weapon . | . . . Unidentified Prototypes . | . . . Parts Lost 5 | . . 5 Power 1 | . . 1 Propulsion 2 | . . 2 Utility . | . . . Weapon 2 | . . 2 Highest Loss Streak 5 | . . 5 Average Slot Usage (%) 97 | . 98 89 Engine 13 | . 13 10 Wheel 27 | . 28 22 Device 2 | . 2 . Storage 24 | . 23 28 Ballistic Gun 8 | . 9 . Ballistic Cannon 19 | . 18 26 Naked Turns . | . . . Heaviest Build 43 | 13 43 43 Greatest Support 32 | 26 32 20 Greatest Overweight (x) 2 | . 2 2 Average Overweight (x) . | . . 2 Largest Inventory Capacity 16 | 6 16 16 Average Capacity 11 | 4 10 16 Most Carried 16 | 3 16 15 Average Carried 8 | . 8 14 Final Capacity 16 | 6 16 16 Final Carried 15 | . 15 13 Class Distribution -------------------- 100% | Mutant Dominant Class ---------------- Mutant | -10/Materials Mutant | -10/Mines Resources | -11 -10 -10 ----------- Run | Scr Mat Min Matter Collected 904 | 239 644 21 Remotely . | . . . Salvage Created 711 | . 629 82 Parts 59 | . 56 3 Haulers Intercepted 2 | . 2 . Recyclers Shooed 2 | . 2 . Parts Field Recycled . | . . . Retrieved Matter . | . . . Parts Self-Destructed . | . . . Prevented . | . . . Kills | -11 -10 -10 ------- Run | Scr Mat Min Combat Hostiles Destroyed 22 | . 17 5 Guns 10 | . 10 . Cannons 12 | . 7 5 Classes Destroyed 9 | . 7 2 Worker 3 | . 2 1 Builder 2 | . 2 . Tunneler 1 | . 1 . Hauler 2 | . 2 . Watcher 3 | . 3 . Swarmer 9 | . 9 . Grunt 9 | . 8 1 Demolisher 1 | . . 1 Assembled 3 | . . 3 Best Kill Streak 7 | . 7 6 Combat Bots Only 4 | . 4 4 Max Kills in Single Turn 2 | . 2 1 Gunslinging 1 | . 1 . Exploded . | . . . Melee . | . . . Uniques/NPCs Destroyed . | . . . Combat | -11 -10 -10 -------- Run | Scr Mat Min Damage Taken 959 | . 415 544 Core 250 | . 81 169 Absorbed by Shields . | . . . Core Remaining (%) 100 | 100 . . Volleys Fired 77 | . 56 21 Largest 2 | . 2 2 Hottest 70 | . 70 70 Shots Fired 151 | . 112 39 Gun 72 | . 72 . Cannon 79 | . 40 39 Launcher . | . . . Special . | . . . Kinetic 151 | . 112 39 Thermal . | . . . Explosive . | . . . Electromagnetic . | . . . Robot Hit Streak 14 | . 14 11 Robot Miss Streak 4 | . 4 3 Penetration Max . | . . . Secondary Targets 2 | . 2 . Max Gunslinging Chain 1 | . 1 . Shots Hit Robots 104 | . 75 29 Core Hits 47 | . 32 15 Critical Hits . | . . . Critical Kills . | . . . Critical Parts Destroyed . | . . . Melee Attacks . | . . . Impact . | . . . Slashing . | . . . Piercing . | . . . Sneak Attacks . | . . . Combat Hostiles . | . . . Follow-up Attacks . | . . . Damage Inflicted 1671 | . 1118 553 Guns 696 | . 696 . Cannons 973 | . 420 553 Explosions . | . . . Melee . | . . . Ramming 2 | . 2 . Kinetic 1669 | . 1116 553 Thermal . | . . . Explosive . | . . . Electromagnetic . | . . . Impact . | . . . Slashing . | . . . Piercing . | . . . Highest Corruption . | . . . Average Corruption . | . . . Corruption Purged . | . . . Overload Shots . | . . . Overflow Damage 29 | . 13 16 Projectiles 29 | . 13 16 Explosions . | . . . Melee . | . . . Knockbacks 23 | . 8 15 Impact . | . . . Kinetic 17 | . 7 10 Secondary 6 | . 1 5 Self-Inflicted Damage 1 | . 1 . Shots . | . . . Rammed 2 | . 2 . Targets Rammed 2 | . 2 . Kicked . | . . . Crushed . | . . . Highest Temperature 114 | . 57 114 Average Temperature 37 | . 21 56 Received Heat Transfer 192 | . 174 18 Siege Activations . | . . . Robots Corrupted . | . . . Combat Hostiles . | . . . Parts Fried . | . . . Impact Corruptions 2 | . . 2 Robots Melted . | . . . Combat Hostiles . | . . . Parts Melted . | . . . Heat Transferred . | . . . Parts Sabotaged . | . . . Parts Stolen . | . . . Parts Stripped . | . . . Power Chain Reactions . | . . . Missiles Intercepted . | . . . Alert | -11 -10 -10 ------- Run | Scr Mat Min Peak Influence 396 | . 396 113 Initial 63 | . . 63 Average 215 | . 233 93 Maximum Alert Level 1 | . 1 . Low Security (%) 55 | 100 50 100 Level 1 44 | . 49 . Level 2 . | . . . Level 3 . | . . . Level 4 . | . . . Level 5 . | . . . High Security . | . . . Max Security . | . . . Squads Dispatched 2 | . 2 . Investigation 2 | . 2 . Extermination . | . . . Reinforcement . | . . . Assault . | . . . Garrison . | . . . Intercept . | . . . Construction Impeded . | . . . Haulers Reinforced . | . . . Stealth | -11 -10 -10 --------- Run | Scr Mat Min Distress Signals 1 | . 1 . Communications Jammed . | . . . Distress Signals . | . . . Times Spotted 35 | . 25 10 Peak Tracking Total 7 | . 6 7 Tactical Retreats 4 | . 3 1 Traps | -11 -10 -10 ------- Run | Scr Mat Min Traps Triggered 2 | . 2 . Indirectly . | . . . Trap Hack Attempts . | . . . Triggered . | . . . Disarmed . | . . . Reprogrammed . | . . . Reused . | . . . Traps Extracted . | . . . Installed . | . . . Triggered . | . . . Machines | -11 -10 -10 ---------- Run | Scr Mat Min Machines Disabled . | . . . Max in Single Turn . | . . . Machines Sabotaged . | . . . Garrisons Compromised . | . . . Overloaded Fab Kills . | . . . Fab Network Shutdowns . | . . . Hacking | -11 -10 -10 --------- Run | Scr Mat Min Machines Accessed 3 | . 3 . Terminals 2 | . 2 . Fabricators . | . . . Repair Stations 1 | . 1 . Recycling Units . | . . . Scanalyzers . | . . . Garrison Access . | . . . Total Hacks 13 | . 13 . Successful 9 | . 9 . Failed 4 | . 4 . Catastrophic . | . . . Database Lockouts . | . . . Manual . | . . . Terminals 8 | . 8 . Fabricators . | . . . Repair Stations 5 | . 5 . Recycling Units . | . . . Scanalyzers . | . . . Garrison Access . | . . . Terminal Hacks 5 | . 5 . Record 2 | . 2 . Locate Traps 2 | . 2 . Investigation Status 1 | . 1 . Fabricator Hacks . | . . . Repair Station Hacks 4 | . 4 . Scan Component 2 | . 2 . Repair 2 | . 2 . Recycling Unit Hacks . | . . . Scanalyzer . | . . . Garrison Access Hacks . | . . . Unauthorized Hacks . | . . . Terminals . | . . . Fabricators . | . . . Repair Stations . | . . . Recycling Units . | . . . Scanalyzers . | . . . Garrison Access . | . . . Data Cores Recovered . | . . . Used . | . . . Hacking Detections 2 | . 2 . Full Trace Events 1 | . 1 . Feedback Events . | . . . Feedback Blocked . | . . . Robot Schematics Acquired . | . . . Robots Built . | . . . Matter . | . . . Time . | . . . Total Robot Build Rating . | . . . Part Schematics Acquired . | . . . Parts Built . | . . . Matter . | . . . Time . | . . . Total Part Build Rating . | . . . Parts Repaired 2 | . 2 . Time 52 | . 52 . Parts Recycled . | . . . Recycled Matter . | . . . Retrieved Matter . | . . . Retrieved Components . | . . . Parts Scanalyzed . | . . . Part Schematics Acquired . | . . . Parts Damaged . | . . . Bothacking | -11 -10 -10 ------------ Run | Scr Mat Min Used RIF Installer . | . . . Robots Hacked . | . . . Non-combat . | . . . Combat . | . . . Robot Hacks Applied . | . . . Relay Couplers Released . | . . . Robots Rewired . | . . . Allies Hacked . | . . . Hacks Repelled . | . . . Allies | -11 -10 -10 -------- Run | Scr Mat Min Total Allies . | . . . Largest Group . | . . . Highest-Rated Group . | . . . Highest-Rated Ally . | . . . Total Orders . | . . . Ally Attacks . | . . . Total Damage . | . . . Kills . | . . . Allies Corrupted . | . . . Allies Melted . | . . . Intel | -11 -10 -10 ------- Run | Scr Mat Min Robot Analysis Total . | . . . Derelict Logs Recovered . | . . . Drone Launches . | . . . Drone Recoveries . | . . . Exploration | -11 -10 -10 ------------- Run | Scr Mat Min Turns Passed 1139 | 38 1021 80 Spaces Moved 801 | 32 750 19 Core 5 | 5 . . Treads . | . . . Legs . | . . . Wheels 796 | 27 750 19 Hover . | . . . Flight . | . . . Fastest Speed 50 | 50 90 100 Average Speed 93 | 82 93 100 Slowest Speed 100 | 90 100 100 Overloaded Moves . | . . . Propulsion Burnouts . | . . . Robots Hopped . | . . . Cave-ins Triggered . | . . . Exploration Rate (%) 35 | 4 95 6 Regions Visited 2 Branch Regions 1 Pre-discovered Areas . | . . . Known Exits Taken . | . . . Unknown Exits Taken 2 | 1 1 . Scrap Searched . | . . . Spaces Dug . | . . . Terrain Destroyed . | . . . Melee . | . . . Projectile . | . . . AOE . | . . . Terrain Rammed . | . . . Walls Destroyed . | . . . Machines Disabled . | . . . Actions | -11 -10 -10 --------- Run | Scr Mat Min Total 1047 | 43 961 43 Wait 93 | . 92 1 Move 799 | 31 749 19 Hop . | . . . Pick Up 39 | 6 33 . Fast Attach . | . . . Attach 11 | 6 3 2 Detach . | . . . Swap 13 | . 13 . Drop 13 | . 13 . Fire 77 | . 56 21 Melee . | . . . Ram 2 | . 2 . Kick . | . . . Crush . | . . . Escape Stasis . | . . . Rewire . | . . . Trap . | . . . Miscellaneous . | . . . Route ------- -11/Scrapyard -10/Materials (discovered 5 exits: [*Mat x3] / [*Min x2]) -10/Mines History --------- Turn | Location | Event 11 | -11/Scrapyard | Discovered new exit (range 15) 39 | -11/Scrapyard | Entered Materials 303 | -10/Materials | Build established: Mutant 457 | -10/Materials | Discovered new exit (range 9) 504 | -10/Materials | Discovered new exit (range 16) 666 | -10/Materials | Discovered new exit (range 8) 709 | -10/Materials | Discovered new exit (range 15) 874 | -10/Materials | Discovered new exit (range 9) 914 | -10/Materials | Repaired Hcp. Battery 941 | -10/Materials | Repaired Assault Rifle 1060 | -10/Materials | Entered Mines 1061 | -10/Mines | Assembled infested the area 1132 | -10/Mines | Core integrity fell below 50% 1139 | -10/Mines | Core integrity fell below 20% 1140 | -10/Mines | Destroyed by D-53 Grenadier with Mini Grenade Launcher Last Messages --------------- 01122_ as-29541 knocked back. 01122_ Destroyed Asb. Hover Unit. 01122_ as-61203 system corrupted by crushing effect. 01123_ as-91380 misfires. 01124_ K-01 Serf collects debris. 01125_ K-01 Serf knocked back. 01125_ K-01 Serf destroyed. 01126_ as-91380 destroyed. 01126_ as-61203 destroyed. 01127_ Ion Engine destroyed. 01127_ Wheel destroyed. 01128_ as-29541 destroyed. 01128_ D-53 Grenadier knocked back. 01129_ Lgt. Cannon destroyed. 01130_ The unstable cave ceiling collapses. 01130_ Wheel destroyed. 01131_ D-53 Grenadier destroyed. 01134_ The unstable cave ceiling collapses. 01136_ Lgt. Cannon destroyed. 01137_ The unstable cave ceiling collapses. Map ----- +----------------------------------------------------+ | ????????????????????????????? | | ????????????????????????????? | | ????????????????????????????? | | ????????????????????????????? | | ????????????????????????????? | | ????????????????????????????? | | ????????????????????????????? | | ????????????????????????????? | | ????????????????????????????? | | ????????????????????????????? | | ????????????????????????????? | | ????????????????????????????? | | ????????????????????????????? | | ????????????????????????????? | | ????????????????????????????? | | ????????????????????????????? | | ???????????####?????????????? | | ?????????? ??????????????? | | ?#######? % ???????????????? | | ## ## #????????????????? | | # = #????????????????? | | # %d #????????????????? | | # % ##???????????????? | | ! ##??????????????? | | # #??????????????? | | @ #??????????????? | | # ##??????????????? | | # #!%#???????????????? | | ##?=#???????????????? | | ##?? %???????????????? | | # ## ###???? ??????????????? | | ##?# #??????? #?????????????? | | ???# #??????? #?????????????? | | ??## ######??? ?????????????? | | ??# #???? ????????????? | | ??# """ #?????????????????? | | ??# """ #?????????????????? | | ??# """ #?????????????????? | | ??# #?????????????????? | | ??#########?????????????????? | | ????????????????????????????? | | ????????????????????????????? | | ????????????????????????????? | | ????????????????????????????? | | ????????????????????????????? | | ????????????????????????????? | | ????????????????????????????? | | ????????????????????????????? | | ????????????????????????????? | | ????????????????????????????? | +----------------------------------------------------+ Best States ------------- Heat Dissipation 25 Energy Generation 10 Energy Capacity 250 Matter Stores 398 Matter Capacity 400 Sight Range 16 Robot Scan Range 10 Terrain Scan Density 10 Resistance: KI 20 Resistance: TH 20 Resistance: EX 20 Resistance: EM 20 Resistance: I 20 Resistance: S 20 Resistance: P 20 Evasion (%) 44 Offensive Hacking 10 Item Schematics ----------------- None Robot Schematics ------------------ None Fabricated ------------ Nothing Alien Tech Used ----------------- None Achievements -------------- None Challenges ------------ None Game ------ Seed TeslaProtonSword Manual? 0 Play Time 00:12:33 Cumulative 84.1 hours Start 2022.02.14 @ 15:15:50 End 2022.02.14 @ 15:27:20 Sessions 1 Manual Loads 0 Difficulty Adventurer Special Mode None Game No. 55 Rogue 46 Adventurer 9 Explorer 0 Win Type - Total 0 Types 0/0/0/0/0/0/0/0/0 Lore% 19 Gallery% 34 Achievement% 23 Wizard Run 0 Options --------- ASCII 0 Keyboard 0 Movement Mouse Keybinds 0 Fullscreen 1 Font 24/Smallcaps Map View 113x50 Tactical HUD 1 Map Filters NONE Filters NONE Steam 1 RUN: aac38683-1fff-49a5-9944-054ad4f0750e